Cogmind - Beta 13 @@@ ROGUE MODE // 2024.06.08 @ 21:54:39 Player: KN-OKO Result: Escaped! Performance ------------- Evolutions (9) 4500 Regions Visited (20) 4000 Robots Destroyed (237) 1185 Value Destroyed (10718) 10718 Prototype IDs (29) 580 Alien Tech Used (0) 0 Bonus (8865) 8865 TOTAL SCORE: 29848 Bonus ------- High Alert Combat Kills 1859 Follower Combat Kills 835 Entered DSFs 500 Aligned with FarCom 300 Met R17 at Cetus 500 Met R17 at Research 2000 Win 3000 Friendly Fire -129 Cogmind --------- Core Integrity 303/1600 Matter 149/300 Energy 98/100 System Corruption 5% Temperature Cool (0) Movement Core (50) Location To Epsilon Eridani Parts ------- > --- POWER (3) -------- (None) > --- PROPULSION (8) --- (None) > --- UTILITY (11) ----- Experimental Terrain Scan Processor Advanced Target Analyzer Advanced Target Analyzer > --- WEAPON (3) ------- (None) > --- INVENTORY (5) ---- Micro Antimatter Reactor Trap Reconfigurator KE Penetrator Linear Accelerator Peak State ------------ > --- POWER ------------ Reinforced Fission Core Particle Reactor Light Quantum Reactor > --- PROPULSION ------- Biometal Heavy Treads Biometal Heavy Treads Biometal Heavy Treads Biometal Heavy Treads > --- UTILITY ---------- Advanced Cooling System Advanced Cooling System High-capacity Storage Unit Advanced Targeting Computer Advanced Target Analyzer Advanced Target Analyzer Matter Filter Improved Focal Shield Advanced Hacking Suite > --- WEAPON ----------- Enhanced Quantum Rifle KE Penetrator Railgun > --- INVENTORY -------- Myomer Leg Myomer Leg Advanced VSS Leg Biometal Leg Biometal Leg Biometal Leg Trap Reconfigurator KE Penetrator KE Penetrator Linear Accelerator Linear Accelerator Fusion Bomb Launcher [Rating: 172] Favorites ----------- Power Quantum Reactor Engine Makeshift Power Source Power Core Neutrino Core Reactor Quantum Reactor Propulsion Armored Leg Treads Light Treads Leg Armored Leg Wheel Compact Wheel Utility High-capacity Storage Unit Device Advanced Cooling System Storage High-capacity Storage Unit Processor Advanced Targeting Computer Hackware Advanced Hacking Suite Protection Improved Medium Armor Plating Weapon KE Penetrator Energy Gun Medium Laser Ballistic Gun KE Penetrator Ballistic Cannon Linear Accelerator Launcher Fusion Bomb Launcher Impact Weapon Mace Slashing Weapon Chainsword Build | -11 -10 -9 -9 -9 -8 -8 -7 -6 -6 -5 -5 -5 -5 -5 -4 -3 -3 -3 -2 -1 ------- Run | Yrd Mat Mat Min Exi Min Mat Fac Fac DSF Fac Ext Cet Arc Hub Fac Res Arm Lab Res Acc Slots Evolved 18 | . . 2 . . . 2 2 2 . 2 . . . . 2 2 . . 2 2 Power 2 | . . . . . . . . . . . . . . . 1 . . . . 1 Propulsion 6 | . . . . . . 2 . . . 2 . . . . . . . . 2 . Utility 9 | . . 1 . . . . 2 2 . . . . . . 1 2 . . . 1 Weapon 1 | . . 1 . . . . . . . . . . . . . . . . . . Parts Attached 238 | 7 8 4 4 . 3 9 11 . 13 9 19 7 3 2 35 5 65 . 3 31 Power 20 | 1 1 . . . 1 . . . 1 . 1 1 . . 2 1 10 . . 1 Engine 4 | 1 1 . . . 1 . . . 1 . . . . . . . . . . . Core 2 | . . . . . . . . . . . 1 . . . . . 1 . . . Reactor 14 | . . . . . . . . . . . . 1 . . 2 1 9 . . 1 Propulsion 60 | 2 3 1 1 . . 5 1 . 4 2 1 . . 1 10 1 20 . 1 7 Treads 16 | 1 1 1 . . . 4 1 . . . . . . . . . 5 . 1 2 Leg 39 | . . . . . . . . . 4 2 1 . . 1 10 1 15 . . 5 Wheel 5 | 1 2 . 1 . . 1 . . . . . . . . . . . . . . Hover . | . . . . . . . . . . . . . . . . . . . . . Flight . | . . . . . . . . . . . . . . . . . . . . . Utility 70 | 2 2 1 2 . . 1 8 . 2 2 9 3 1 . 13 2 15 . 2 5 Device 45 | 1 1 1 1 . . 1 4 . 1 2 8 1 . . 7 . 12 . 2 3 Storage 2 | 1 1 . . . . . . . . . . . . . . . . . . . Processor 7 | . . . 1 . . . 2 . . . . . . . 1 1 1 . . 1 Hackware 1 | . . . . . . . . . . . . . . . . . 1 . . . Protection 15 | . . . . . . . 2 . 1 . 1 2 1 . 5 1 1 . . 1 Artifact . | . . . . . . . . . . . . . . . . . . . . . Weapon 88 | 2 2 2 1 . 2 3 2 . 6 5 8 3 2 1 10 1 20 . . 18 Energy Gun 27 | 1 . 1 . . 1 2 2 . 2 1 3 1 . . 2 . 9 . . 2 Energy Cannon . | . . . . . . . . . . . . . . . . . . . . . Ballistic Gun 38 | 1 2 1 . . . . . . 3 2 3 2 2 1 7 1 9 . . 4 Ballistic Cannon 6 | . . . . . . . . . . . . . . . . . . . . 6 Launcher 12 | . . . . . 1 . . . 1 1 . . . . 1 . 2 . . 6 Special Weapon . | . . . . . . . . . . . . . . . . . . . . . Impact Weapon 4 | . . . 1 . . 1 . . . . 2 . . . . . . . . . Slashing Weapon 1 | . . . . . . . . . . 1 . . . . . . . . . . Piercing Weapon . | . . . . . . . . . . . . . . . . . . . . . Special Melee Weapon . | . . . . . . . . . . . . . . . . . . . . . Unidentified Prototypes 6 | . . . . . . . . . 1 1 . . 1 . 2 . . . . 1 Parts Lost 91 | . . 4 2 . . 3 1 . 6 1 1 1 1 1 19 1 22 . . 28 Power 10 | . . . 1 . . . . . 1 . . . . . 2 . 3 . . 3 Propulsion 31 | . . 1 1 . . 2 . . 2 . . . . 1 8 1 5 . . 10 Utility 28 | . . 1 . . . . . . 2 . 1 1 1 . 5 . 9 . . 8 Weapon 22 | . . 2 . . . 1 1 . 1 1 . . . . 4 . 5 . . 7 Highest Loss Streak 13 | . . 2 2 . . 3 1 . 3 1 1 1 1 1 10 1 5 . . 13 To Critical Strikes 4 | . . . . . . . . . . . . 1 1 1 1 . . . . . Average Slot Usage (%) 92 | . 100 91 89 88 92 99 99 86 90 95 99 100 100 100 95 92 89 71 72 54 Engine 2 | . 14 11 3 . 4 9 7 6 5 5 . . . . . . . . . . Reactor 3 | . . . . . . . . . . . . 4 5 5 9 6 7 4 4 3 Treads 8 | . 14 12 14 11 11 34 29 26 7 . . . . . . . 3 14 17 10 Leg 17 | . . . . . . . . . 15 35 35 35 35 35 29 27 21 . . 3 Wheel 2 | . 14 9 7 11 11 1 . . . . . . . . . . . . . . Device 11 | . 14 14 13 11 11 9 7 6 10 12 17 15 6 5 12 9 11 9 11 11 Storage 6 | . 14 11 11 11 11 9 7 6 6 5 5 5 5 5 5 4 4 4 4 2 Processor 11 | . . . 6 11 11 9 14 13 13 11 11 11 11 11 10 13 16 14 13 10 Protection 5 | . . . . . . . 6 6 10 5 4 6 15 17 10 14 6 . . . Energy Gun 7 | . 7 3 11 11 11 21 22 20 14 6 5 . . . 4 . 3 4 4 1 Ballistic Gun 10 | . 21 29 11 11 11 . . . 4 7 9 16 17 17 9 14 9 9 8 5 Impact Weapon 1 | . . . 9 11 11 5 . . . . . . . . . . . . . . Naked Turns . | . . . . . . . . . . . . . . . . . . . . . Heaviest Build 142 | 15 46 49 51 46 50 53 61 61 76 73 84 95 103 103 125 123 142 97 102 125 Greatest Support 300 | 16 16 40 40 16 16 80 80 80 80 94 99 99 99 103 126 122 225 225 300 300 Greatest Overweight (x) 5 | . 4 4 2 2 3 5 . . 2 . . . 1 1 1 1 2 . . 1 Average Overweight (x) . | . 1 3 1 2 2 . . . . . . . . . . . . . . . Largest Inventory Capacity 20 | 8 20 20 20 20 20 20 20 20 20 20 20 20 20 20 20 20 20 20 20 20 Average Capacity 19 | 7 11 20 20 20 20 20 20 20 20 20 20 20 20 20 20 20 20 20 20 15 Most Carried 20 | 6 10 9 15 19 19 20 20 18 20 20 20 20 20 20 20 18 20 14 13 12 Average Carried 16 | 4 8 8 12 18 19 16 18 18 17 19 19 19 19 19 18 14 19 14 12 8 Final Capacity 20 | 8 20 20 20 20 20 20 20 20 20 20 20 20 20 20 20 20 20 20 20 5 Final Carried 20 | 6 10 9 15 19 19 20 18 18 19 20 19 20 20 19 13 18 14 14 13 4 Class Distribution -------------------- 29% | Scavenger-Gunner 24% | Scavenger-Tank 16% | Mutant 11% | Scavenger-Skirmisher 9% | Scavenger-Mutant 3% | Skirmisher 3% | Gunner Dominant Class ---------------- Mutant | -10/Materials Scavenger-Gunner | -9/Materials Mutant | -9/Mines Mutant | -9/Exiles Mutant | -8/Mines Scavenger-Mutant | -8/Materials Scavenger-Skirmisher | -7/Factory Scavenger-Skirmisher | -6/Factory Scavenger-Tank | -6/DSF Skirmisher | -5/Factory Scavenger-Gunner | -5/Extension Scavenger-Gunner | -5/Cetus Scavenger-Tank | -5/Archives Scavenger-Tank | -5/Hub_04(d) Scavenger-Tank | -4/Factory Scavenger-Tank | -3/Research Scavenger-Gunner | -3/Armory Scavenger-Gunner | -3/Lab Scavenger-Gunner | -2/Research Scavenger-Gunner | -1/Access Resources | -11 -10 -9 -9 -9 -8 -8 -7 -6 -6 -5 -5 -5 -5 -5 -4 -3 -3 -3 -2 -1 ----------- Run | Yrd Mat Mat Min Exi Min Mat Fac Fac DSF Fac Ext Cet Arc Hub Fac Res Arm Lab Res Acc Matter Collected 5700 | 294 165 125 43 . 43 75 105 . 194 189 369 205 102 258 798 171 1820 . 60 684 Remotely . | . . . . . . . . . . . . . . . . . . . . . Salvage Created 10737 | 66 326 491 182 . 73 351 203 . 355 488 702 173 82 387 1651 209 2393 . . 2605 Parts 455 | 5 26 22 9 . 10 25 12 . 12 15 25 6 2 24 64 14 92 . . 92 Haulers Intercepted 4 | . 1 . . . . . 1 . . . . . . . . . . . . 2 Recyclers Shooed 8 | 1 . 1 2 . . . 1 . . . . . . . . . . . . 3 Parts Field Recycled . | . . . . . . . . . . . . . . . . . . . . . Retrieved Matter . | . . . . . . . . . . . . . . . . . . . . . Parts Self-Destructed . | . . . . . . . . . . . . . . . . . . . . . Prevented . | . . . . . . . . . . . . . . . . . . . . . Kills | -11 -10 -9 -9 -9 -8 -8 -7 -6 -6 -5 -5 -5 -5 -5 -4 -3 -3 -3 -2 -1 ------- Run | Yrd Mat Mat Min Exi Min Mat Fac Fac DSF Fac Ext Cet Arc Hub Fac Res Arm Lab Res Acc Combat Hostiles Destroyed 177 | . 9 9 . . 7 9 2 . 8 7 7 2 1 7 21 6 41 . . 41 Melee 1 | . . . . . 1 . . . . . . . . . . . . . . . Guns 136 | . 9 9 . . 3 9 2 . 5 7 7 2 1 7 17 6 35 . . 17 Cannons 1 | . . . . . . . . . . . . . . . . . . . . 1 AOE 39 | . . . . . 3 . . . 3 . . . . . 4 . 6 . . 23 Classes Destroyed 18 | 2 3 2 1 . . 1 . . 2 1 . . . . 3 . 2 . . 1 Worker 15 | . 1 . 1 . . 3 . . . . . . . 1 1 . . . . 8 Builder 14 | . . . 1 . . . 1 . . . 2 . . 1 2 . . . . 7 Tunneler 4 | 1 . . 1 . . . . . . 1 . . . . . . . . . 1 Hauler 4 | . 1 . . . . . 1 . . . . . . . . . . . . 2 Recycler 13 | 1 1 1 2 . . . . . . 1 1 . . . 2 . . . . 4 Mechanic 1 | . . . . . . . . . . . . . . . . . . . . 1 Operator 1 | . . . . . . . . . . 1 . . . . . . . . . . Watcher 8 | . . . . . . 1 1 . . . 1 1 . 2 2 . . . . . Swarmer 55 | . 9 . . . 7 4 . . . 4 . . . 5 1 6 7 . . 12 Saboteur 2 | . . . . . . . . . . . . . . . . . 1 . . 1 Grunt 48 | . . 7 . . . 4 2 . 2 3 2 . . . 7 . 4 . . 17 Brawler 6 | . . . . . . . . . . . . . . . 2 . 2 . . 2 Duelist 9 | . . . . . . . . . . . . . . . 2 . 6 . . 1 Sentry 16 | . . 2 . . . 1 . . . . 4 . 1 2 2 . 3 . . 1 Specialist 11 | . . . . . . . . . 3 . . . . . . . 8 . . . Hunter 14 | . . . . . . . . . 3 . 1 . . . 4 . . . . 6 Programmer 13 | . . . . . . . . . . . . . . . 3 . 9 . . 1 Behemoth 1 | . . . . . . . . . . . . . . . . . 1 . . . Cetus Guard 2 | . . . . . . . . . . . . 2 . . . . . . . . Best Kill Streak 18 | 2 3 4 2 . 4 5 3 . 4 5 5 2 1 7 6 3 7 . . 18 Combat Bots Only 15 | . 3 4 . . 4 3 2 . 4 4 3 2 1 5 6 3 7 . . 15 Max Kills in Single Turn 5 | 1 1 1 1 . 3 1 2 . 2 1 2 2 1 1 2 1 2 . . 5 Gunslinging 1 | . . . . . . . . . . . . 1 . . 1 . 1 . . . Exploded 5 | . . . . . 3 . . . 2 . . . . . 2 . 2 . . 5 Melee 1 | . . . . . 1 . . . . . . . . . . . . . . . Uniques/NPCs Destroyed . | . . . . . . . . . . . . . . . . . . . . . Combat | -11 -10 -9 -9 -9 -8 -8 -7 -6 -6 -5 -5 -5 -5 -5 -4 -3 -3 -3 -2 -1 -------- Run | Yrd Mat Mat Min Exi Min Mat Fac Fac DSF Fac Ext Cet Arc Hub Fac Res Arm Lab Res Acc Hostile Shots Fired 1572 | . 48 70 2 . 15 29 7 . 105 24 42 17 6 40 207 26 425 . . 509 Missed 422 | . 8 21 . . 6 4 2 . 32 6 16 4 1 11 57 5 88 . . 161 Damage Taken 21976 | . 311 623 23 . 93 393 168 . 1575 300 532 355 125 558 2971 468 6790 . . 6691 Core 2560 | . 69 123 . . 12 . 30 . 166 19 74 55 26 29 171 21 468 . . 1297 Absorbed by Shields 1567 | . . . 9 . . . . . . . . . . . . . 1558 . . . Reduced by Siege Mode 1059 | . . . . . . . . . . . . . . . . . 585 . . 474 Ignored by Resistances 919 | . . . . . . . . . . . . . . . 130 . . . . 789 Core Remaining (%) 77 | 100 72 . . . 66 100 95 . 80 . . . . 79 85 . . 62 100 18 Volleys Fired 500 | 8 31 34 3 . 4 22 10 . 23 18 33 11 6 18 69 10 127 . . 73 Largest 3 | 2 2 3 2 . 2 3 3 . 3 3 3 3 3 3 3 3 3 . . 3 Hottest 225 | 70 70 90 70 . 70 171 175 . 175 156 225 225 98 103 209 105 165 . . 160 Shots Fired 1249 | 16 62 101 6 . 7 48 29 . 57 50 73 31 18 54 174 30 330 . . 163 Gun 1201 | 16 62 101 6 . 6 48 29 . 51 50 73 31 18 54 170 30 323 . . 133 Cannon 15 | . . . . . . . . . . . . . . . . . . . . 15 Launcher 33 | . . . . . 1 . . . 6 . . . . . 4 . 7 . . 15 Special . | . . . . . . . . . . . . . . . . . . . . . Kinetic 819 | 8 39 94 3 . 3 . . . 6 26 51 30 18 54 91 30 245 . . 121 Thermal 397 | 8 23 7 3 . 3 48 29 . 45 24 22 1 . . 79 . 78 . . 27 Explosive 33 | . . . . . 1 . . . 6 . . . . . 4 . 7 . . 15 Electromagnetic . | . . . . . . . . . . . . . . . . . . . . . Robot Hit Streak 45 | 6 11 13 12 . 4 17 23 . 15 8 24 12 3 14 19 5 45 . . 20 Robot Miss Streak 5 | 2 3 5 1 . . 3 1 . 2 3 3 1 2 5 4 4 2 . . 2 Penetration Max 2 | . . . . . . . . . . 1 2 1 . 1 2 1 1 . . 1 Secondary Targets 20 | . . . . . . . . . . . 1 1 . 1 3 . 12 . . 2 Max Gunslinging Chain 1 | . . . . . . . . . . . 1 1 . 1 1 . 1 . . 1 Shots Hit Robots 868 | 10 35 63 9 . 5 35 24 . 44 34 48 25 10 34 121 14 239 . . 118 Core Hits 490 | 3 15 26 2 . 5 22 9 . 30 17 21 11 2 15 68 9 100 . . 135 Critical Kills 22 | . . . . . . . . . . 1 1 1 . . 2 3 10 . . 4 Critical Parts Destroyed 39 | . . . . . . . . . . . 3 . . 1 3 2 22 . . 8 Critical Strikes 81 | . 1 2 . . . 3 3 . 3 1 5 1 1 1 6 5 35 . . 14 Burn 12 | . 1 1 . . . 3 3 . 3 . 1 . . . . . . . . . Destroy 68 | . . 1 . . . . . . . 1 3 1 1 1 6 5 35 . . 14 Smash 1 | . . . . . . . . . . . 1 . . . . . . . . . Melee Attacks 19 | . . . 8 . 2 2 . . . 2 5 . . . . . . . . . Impact 17 | . . . 8 . 2 2 . . . . 5 . . . . . . . . . Slashing 2 | . . . . . . . . . . 2 . . . . . . . . . . Piercing . | . . . . . . . . . . . . . . . . . . . . . Sneak Attacks 10 | . . . 6 . . 2 . . . 1 1 . . . . . . . . . Combat Hostiles . | . . . . . . . . . . . . . . . . . . . . . Follow-up Attacks . | . . . . . . . . . . . . . . . . . . . . . Damage Inflicted 34306 | 124 374 559 411 . 296 711 373 . 1379 931 1765 915 258 1181 4965 514 9691 . . 9859 Guns 21390 | 124 374 559 26 . 38 458 373 . 620 833 1600 915 258 1180 3657 514 7017 . . 2844 Cannons 222 | . . . . . . . . . . . . . . . . . . . . 222 Explosions 11697 | . . . . . 183 . . . 759 . . . . . 1308 . 2674 . . 6773 Melee 927 | . . . 381 . 75 221 . . . 85 165 . . . . . . . . . Ramming 70 | . . . 4 . . 32 . . . 13 . . . 1 . . . . . 20 Kinetic 14973 | 73 262 472 . . . . . . 51 509 1235 915 258 1180 1893 514 5131 . . 2480 Thermal 6844 | 51 112 87 26 . 38 458 373 . 569 324 365 . . . 1764 . 1886 . . 791 Explosive 11492 | . . . . . 183 . . . 759 . . . . . 1308 . 2674 . . 6568 Electromagnetic . | . . . . . . . . . . . . . . . . . . . . . Impact 842 | . . . 381 . 75 221 . . . . 165 . . . . . . . . . Slashing 85 | . . . . . . . . . . 85 . . . . . . . . . . Piercing . | . . . . . . . . . . . . . . . . . . . . . Highest Corruption 30 | . . . . . . . . . . . . . . . 12 . 30 30 . 5 Average Corruption 10 | . . . . . . . . . . . . . . . 3 . 15 30 . 2 Corruption Purged . | . . . . . . . . . . . . . . . . . . . . . Corruption Blocked 6 | . . . . . . . . . . . . . . . . . 6 . . . Effects 99 | . . . . . . . . . . . . . . . 15 . 77 1 . 6 Message Errors 13 | . . . . . . . . . . . . . . . 2 . 10 1 . . Matter Fused 28 | . . . . . . . . . . . . . . . 6 . 19 . . 3 Heat Flow Errors 11 | . . . . . . . . . . . . . . . 1 . 10 . . . Energy Discharges 12 | . . . . . . . . . . . . . . . 3 . 8 . . 1 Parts Rejected 2 | . . . . . . . . . . . . . . . . . 1 . . 1 Data Loss (minor) 12 | . . . . . . . . . . . . . . . 2 . 10 . . . Data Loss (major) 3 | . . . . . . . . . . . . . . . . . 3 . . . Misfires 4 | . . . . . . . . . . . . . . . 1 . 3 . . . Alerts 3 | . . . . . . . . . . . . . . . . . 2 . . 1 Weapon Failures 11 | . . . . . . . . . . . . . . . . . 11 . . . Overload Shots 3 | . . . . . . . . . . . 2 1 . . . . . . . . Effects 1 | . . . . . . . . . . . 1 . . . . . . . . . Short Circuit 1 | . . . . . . . . . . . 1 . . . . . . . . . Overflow Damage 976 | . . . 141 . 32 87 . . 18 65 125 . . . 134 . 74 . . 300 Projectiles . | . . . . . . . . . . . . . . . . . . . . . Explosions 534 | . . . . . 8 . . . 18 . . . . . 134 . 74 . . 300 Melee 442 | . . . 141 . 24 87 . . . 65 125 . . . . . . . . . Knockbacks 5 | . . . 2 . . . . . . 1 . . . . . . . . . 2 Impact 3 | . . . 2 . . . . . . 1 . . . . . . . . . . Kinetic 2 | . . . . . . . . . . . . . . . . . . . . 2 Secondary . | . . . . . . . . . . . . . . . . . . . . . Self-Inflicted Damage 95 | . . . . . 7 . . . 39 . . . . . . . . . . 49 Shots 6 | . . . . . 1 . . . 4 . . . . . . . . . . 1 Rammed 8 | . . . 2 . . 2 . . . . . . . . . . . . . 4 Targets Rammed 10 | . . . 2 . . 2 . . . 1 . . . 1 . . . . . 4 Kicked 2 | . . . . . . . . . . 1 . . . 1 . . . . . . Crushed . | . . . . . . . . . . . . . . . . . . . . . Highest Temperature 330 | 54 72 110 . . . 198 330 . 48 22 110 172 48 176 280 . 297 . . 11 Average Temperature 59 | 24 35 37 . . . 51 115 . 20 13 36 50 18 80 71 . 79 . . 6 Received Heat Transfer 2588 | . . 333 6 . . 234 45 . 99 57 108 . . 72 177 37 691 . . 729 Siege Activations 9 | . . . . . . . . . . . . . . . . . 3 . . 6 Total Turns 366 | . . . . . . . . . . . . . . . . . 180 . . 186 Longest Duration 107 | . . . . . . . . . . . . . . . . . 107 . . 59 Robots Corrupted . | . . . . . . . . . . . . . . . . . . . . . Combat Hostiles . | . . . . . . . . . . . . . . . . . . . . . Parts Fried 8 | . . . 4 . 2 . . . . . 2 . . . . . . . . . Impact Corruptions 15 | . . . 6 . 2 1 . . . . 6 . . . . . . . . . Robots Melted . | . . . . . . . . . . . . . . . . . . . . . Combat Hostiles . | . . . . . . . . . . . . . . . . . . . . . Parts Melted 24 | 1 1 1 . . . 2 3 . 2 2 2 . . . 5 . 4 . . 1 Heat Transferred 12003 | 148 407 333 74 . 111 1480 1147 . 1591 703 703 . . . 2294 . 2072 . . 940 Parts Sabotaged 2 | . . . . . . . . . . . . . . . . . 2 . . . Parts Stolen . | . . . . . . . . . . . . . . . . . . . . . Parts Stripped . | . . . . . . . . . . . . . . . . . . . . . Power Chain Reactions 1 | . . . . . . . . . . . . . . . 1 . . . . . Alert | -11 -10 -9 -9 -9 -8 -8 -7 -6 -6 -5 -5 -5 -5 -5 -4 -3 -3 -3 -2 -1 ------- Run | Yrd Mat Mat Min Exi Min Mat Fac Fac DSF Fac Ext Cet Arc Hub Fac Res Arm Lab Res Acc Peak Influence 1562 | 10 253 291 134 . 180 250 78 . 194 191 240 214 169 343 561 390 875 . . 1562 Initial 219 | . 6 26 105 . . 70 41 . . 101 93 . 5 58 95 219 204 . . . Average 220 | 2 146 147 44 . 142 107 43 . 81 110 90 80 143 139 253 281 380 . . 988 Maximum Alert Level 4 | . 1 1 . . . 1 . . . . 1 1 . 1 2 1 3 . . 4 Low Security (%) 68 | 100 62 62 100 . 100 85 100 100 100 100 94 96 100 91 40 . 31 . 100 13 Level 1 16 | . 37 37 . . . 14 . . . . 5 3 . 8 30 100 32 . . 7 Level 2 4 | . . . . . . . . . . . . . . . 28 . 6 . . 9 Level 3 6 | . . . . . . . . . . . . . . . . . 28 . . 17 Level 4 3 | . . . . . . . . . . . . . . . . . . . . 51 Level 5 . | . . . . . . . . . . . . . . . . . . . . . High Security . | . . . . . . . . . . . . . . . . . . . . . Max Security . | . . . . . . . . . . . . . . . . . . . . . Sterilizations 1 | . . . . . . . . . 1 . . . . . . . . . . . Squads Dispatched 40 | . 1 2 . . . 1 2 . 2 . 1 . . 3 9 1 8 . . 10 Investigation 6 | . . . . . . . . . . . . . . 1 1 1 1 . . 2 Extermination 8 | . . . . . . . 1 . . . . . . . 1 . 5 . . 1 Reinforcement 11 | . 1 2 . . . 1 . . 2 . 1 . . . . . 1 . . 3 Assault 3 | . . . . . . . . . . . . . . . . . 1 . . 2 Garrison 12 | . . . . . . . 1 . . . . . . 2 7 . . . . 2 Intercept . | . . . . . . . . . . . . . . . . . . . . . Searches Triggered . | . . . . . . . . . . . . . . . . . . . . . Construction Impeded 4 | . . . . . . . . . . . 1 . . . . . . . . 3 Haulers Reinforced . | . . . . . . . . . . . . . . . . . . . . . Active Scanning Responses . | . . . . . . . . . . . . . . . . . . . . . Cargo Convoy Interrupts . | . . . . . . . . . . . . . . . . . . . . . Stealth | -11 -10 -9 -9 -9 -8 -8 -7 -6 -6 -5 -5 -5 -5 -5 -4 -3 -3 -3 -2 -1 --------- Run | Yrd Mat Mat Min Exi Min Mat Fac Fac DSF Fac Ext Cet Arc Hub Fac Res Arm Lab Res Acc Distress Signals 20 | . . 3 . . . 4 1 . . . . 2 . . 2 . 6 . . 2 Communications Jammed . | . . . . . . . . . . . . . . . . . . . . . Distress Signals . | . . . . . . . . . . . . . . . . . . . . . Times Spotted 283 | . 12 18 2 . 8 18 6 . 12 8 11 10 3 12 29 10 57 . . 67 Peak Tracking Total 11 | . 4 6 2 . 4 6 2 . 5 4 5 5 1 5 7 7 9 . . 11 Tactical Retreats 30 | . 1 2 . . 1 . 1 . 2 1 1 . . 1 5 1 7 . . 7 Traps | -11 -10 -9 -9 -9 -8 -8 -7 -6 -6 -5 -5 -5 -5 -5 -4 -3 -3 -3 -2 -1 ------- Run | Yrd Mat Mat Min Exi Min Mat Fac Fac DSF Fac Ext Cet Arc Hub Fac Res Arm Lab Res Acc Traps Triggered 6 | . . . . . . . 1 . . . . . . . 1 . 3 . . 1 Indirectly . | . . . . . . . . . . . . . . . . . . . . . Trap Hack Attempts . | . . . . . . . . . . . . . . . . . . . . . Triggered . | . . . . . . . . . . . . . . . . . . . . . Disarmed . | . . . . . . . . . . . . . . . . . . . . . Reprogrammed . | . . . . . . . . . . . . . . . . . . . . . Reused 5 | . . . . . . . . . . . 1 . . . 3 . 1 . . . Traps Reconfigurated 28 | . . . . . . . 4 . . . 9 . . . 9 . 6 . . . Traps Extracted . | . . . . . . . . . . . . . . . . . . . . . Installed . | . . . . . . . . . . . . . . . . . . . . . Triggered 5 | . . . . . . . . . . . 1 . . . 3 . 1 . . . Machines | -11 -10 -9 -9 -9 -8 -8 -7 -6 -6 -5 -5 -5 -5 -5 -4 -3 -3 -3 -2 -1 ---------- Run | Yrd Mat Mat Min Exi Min Mat Fac Fac DSF Fac Ext Cet Arc Hub Fac Res Arm Lab Res Acc Machines Disabled 27 | . . . . . . . . . . . . 1 4 2 7 . 8 . . 5 Max in Single Turn 2 | . . . . . . . . . . . . 1 1 1 2 . 1 . . 1 Garrison Access 1 | . . . . . . . . . . . . . . . . . . . . 1 Energy Cycler 2 | . . . . . . . . . . . . . . . . . . . . 2 Machines Repaired . | . . . . . . . . . . . . . . . . . . . . . Machines Dismantled . | . . . . . . . . . . . . . . . . . . . . . Machines Sabotaged . | . . . . . . . . . . . . . . . . . . . . . Overloaded Fab Kills . | . . . . . . . . . . . . . . . . . . . . . Hacking | -11 -10 -9 -9 -9 -8 -8 -7 -6 -6 -5 -5 -5 -5 -5 -4 -3 -3 -3 -2 -1 --------- Run | Yrd Mat Mat Min Exi Min Mat Fac Fac DSF Fac Ext Cet Arc Hub Fac Res Arm Lab Res Acc Machines Accessed 32 | . 2 1 . 2 . 1 3 1 . 2 4 1 . 2 5 2 3 . 1 2 Terminals 17 | . 2 1 . . . 1 . 1 . . 4 1 . 1 2 2 2 . . . Fabricators 9 | . . . . . . . 3 . . 2 . . . . 3 . 1 . . . Repair Stations . | . . . . . . . . . . . . . . . . . . . . . Recycling Units 1 | . . . . . . . . . . . . . . . . . . . 1 . Scanalyzers . | . . . . . . . . . . . . . . . . . . . . . Garrison Access 3 | . . . . . . . . . . . . . . 1 . . . . . 2 Total Hacks 71 | . 3 3 . 2 . 3 9 1 . 5 9 3 . 4 14 4 4 . 2 5 Successful 25 | . . 1 . 2 . 1 2 1 . 1 7 . . 1 6 1 1 . 1 . Failed 46 | . 3 2 . . . 2 7 . . 4 2 3 . 3 8 3 3 . 1 5 Catastrophic 9 | . 1 . . . . 1 1 . . 1 . 1 . . . 2 . . . 2 Database Lockouts . | . . . . . . . . . . . . . . . . . . . . . Manual 30 | . 2 1 . 1 . . 2 . . . 4 . . 1 10 5 3 1 . . Terminals 36 | . 3 3 . . . 3 . 1 . . 9 3 . 2 5 4 3 . . . Fabricators 24 | . . . . . . . 9 . . 5 . . . . 9 . 1 . . . Repair Stations . | . . . . . . . . . . . . . . . . . . . . . Recycling Units 2 | . . . . . . . . . . . . . . . . . . . 2 . Scanalyzers . | . . . . . . . . . . . . . . . . . . . . . Garrison Access 7 | . . . . . . . . . . . . . . 2 . . . . . 5 Terminal Hacks 8 | . . . . 2 . 1 . 1 . . 3 . . . 1 . . . . . Record 1 | . . . . 1 . . . . . . . . . . . . . . . . Open Door 1 | . . . . . . . . . . . 1 . . . . . . . . . Open DSF 1 | . . . . . . . . 1 . . . . . . . . . . . . Level Access Points 1 | . . . . . . . . . . . 1 . . . . . . . . . Unreport Threat 2 | . . . . . . 1 . . . . . . . . 1 . . . . . Locate Traps 1 | . . . . . . . . . . . 1 . . . . . . . . . Derelict Proto ID Bank 1 | . . . . 1 . . . . . . . . . . . . . . . . Fabricator Hacks 6 | . . . . . . . 2 . . 1 . . . . 2 . 1 . . . Network Status 5 | . . . . . . . 1 . . 1 . . . . 2 . 1 . . . Build 1 | . . . . . . . 1 . . . . . . . . . . . . . Repair Station Hacks . | . . . . . . . . . . . . . . . . . . . . . Recycling Unit Hacks 1 | . . . . . . . . . . . . . . . . . . . 1 . Report Inventory 1 | . . . . . . . . . . . . . . . . . . . 1 . Scanalyzer . | . . . . . . . . . . . . . . . . . . . . . Garrison Access Hacks . | . . . . . . . . . . . . . . . . . . . . . Unauthorized Hacks 10 | . . 1 . . . . . . . . 4 . . 1 3 1 . . . . Terminals 9 | . . 1 . . . . . . . . 4 . . 1 2 1 . . . . Assimilate 1 | . . . . . . . . . . . 1 . . . . . . . . . Botnet 8 | . . 1 . . . . . . . . 3 . . 1 2 1 . . . . Fabricators 1 | . . . . . . . . . . . . . . . 1 . . . . . Overload 1 | . . . . . . . . . . . . . . . 1 . . . . . Repair Stations . | . . . . . . . . . . . . . . . . . . . . . Recycling Units . | . . . . . . . . . . . . . . . . . . . . . Scanalyzers . | . . . . . . . . . . . . . . . . . . . . . Garrison Access . | . . . . . . . . . . . . . . . . . . . . . Data Cores Recovered . | . . . . . . . . . . . . . . . . . . . . . Used . | . . . . . . . . . . . . . . . . . . . . . Hacking Detections 27 | . 2 1 . . . 1 3 . . 1 4 1 . 2 4 2 3 . 1 2 Full Trace Events 4 | . 1 . . . . . . . . . . . . 1 . . . . . 2 Feedback Events . | . . . . . . . . . . . . . . . . . . . . . Feedback Blocked . | . . . . . . . . . . . . . . . . . . . . . Robot Schematics Acquired . | . . . . . . . . . . . . . . . . . . . . . Robots Built . | . . . . . . . . . . . . . . . . . . . . . Authchips . | . . . . . . . . . . . . . . . . . . . . . Time . | . . . . . . . . . . . . . . . . . . . . . Total Robot Build Rating . | . . . . . . . . . . . . . . . . . . . . . Part Schematics Acquired . | . . . . . . . . . . . . . . . . . . . . . Parts Built 2 | . . . . . . . 2 . . . . . . . . . . . . . Authchips . | . . . . . . . . . . . . . . . . . . . . . Time 47 | . . . . . . . 47 . . . . . . . . . . . . . Total Part Build Rating 10 | . . . . . . . 10 . . . . . . . . . . . . . Parts Repaired . | . . . . . . . . . . . . . . . . . . . . . Time . | . . . . . . . . . . . . . . . . . . . . . Parts Recycled . | . . . . . . . . . . . . . . . . . . . . . Recycled Matter . | . . . . . . . . . . . . . . . . . . . . . Retrieved Matter . | . . . . . . . . . . . . . . . . . . . . . Retrieved Components . | . . . . . . . . . . . . . . . . . . . . . Parts Scanalyzed . | . . . . . . . . . . . . . . . . . . . . . Part Schematics Acquired . | . . . . . . . . . . . . . . . . . . . . . Parts Damaged . | . . . . . . . . . . . . . . . . . . . . . Bothacking | -11 -10 -9 -9 -9 -8 -8 -7 -6 -6 -5 -5 -5 -5 -5 -4 -3 -3 -3 -2 -1 ------------ Run | Yrd Mat Mat Min Exi Min Mat Fac Fac DSF Fac Ext Cet Arc Hub Fac Res Arm Lab Res Acc Used RIF Installer . | . . . . . . . . . . . . . . . . . . . . . Robots Hacked . | . . . . . . . . . . . . . . . . . . . . . Non-combat . | . . . . . . . . . . . . . . . . . . . . . Combat . | . . . . . . . . . . . . . . . . . . . . . Robot Hacks Applied . | . . . . . . . . . . . . . . . . . . . . . Relay Couplers Released 2 | . . . . . . . . . . . . . . . . . . . . 2 Machine Destruction 2 | . . . . . . . . . . . . . . . . . . . . 2 Fabnet Peak Effective % . | . . . . . . . . . . . . . . . . . . . . . Robots Rewired 15 | . . . . . . . . . . . 11 . . . . . 4 . . . Allies Hacked 1 | . . . . . . . . . . . . . . . . . 1 . . . Hacks Repelled . | . . . . . . . . . . . . . . . . . . . . . Allies | -11 -10 -9 -9 -9 -8 -8 -7 -6 -6 -5 -5 -5 -5 -5 -4 -3 -3 -3 -2 -1 -------- Run | Yrd Mat Mat Min Exi Min Mat Fac Fac DSF Fac Ext Cet Arc Hub Fac Res Arm Lab Res Acc Total Allies 19 | . . . 2 . . . . . . . 13 . . . . . 4 . . . Largest Group 6 | . . . 2 2 . . . . . . 6 4 2 1 . . 3 . . . Highest-Rated Group 168 | . . . 50 50 . . . . . . 168 123 78 39 . . 144 . . . Highest-Rated Ally 48 | . . . 31 31 . . . . . . 39 39 39 39 . . 48 . . . Total Orders 3 | . . . . . . . . . . . 1 2 . . . . . . . . STAY 2 | . . . . . . . . . . . 1 1 . . . . . . . . FOLLOW 1 | . . . . . . . . . . . . 1 . . . . . . . . Ally Attacks 84 | . . . 2 . . . . . . . 26 29 6 4 . . 17 . . . Total Damage 1811 | . . . 41 . . . . . . . 398 601 132 13 . . 626 . . . Kills 16 | . . . 2 . . . . . . . 2 7 3 . . . 2 . . . Allies Corrupted 1 | . . . . . . . . . . . . . . . . . 1 . . . Allies Melted . | . . . . . . . . . . . . . . . . . . . . . Intel | -11 -10 -9 -9 -9 -8 -8 -7 -6 -6 -5 -5 -5 -5 -5 -4 -3 -3 -3 -2 -1 ------- Run | Yrd Mat Mat Min Exi Min Mat Fac Fac DSF Fac Ext Cet Arc Hub Fac Res Arm Lab Res Acc Robot Analysis Total . | . . . . . . . . . . . . . . . . . . . . . Derelict Logs Recovered 1 | . . . 1 . . . . . . . . . . . . . . . . . Drone Launches . | . . . . . . . . . . . . . . . . . . . . . Drone Recoveries . | . . . . . . . . . . . . . . . . . . . . . Exploration | -11 -10 -9 -9 -9 -8 -8 -7 -6 -6 -5 -5 -5 -5 -5 -4 -3 -3 -3 -2 -1 ------------- Run | Yrd Mat Mat Min Exi Min Mat Fac Fac DSF Fac Ext Cet Arc Hub Fac Res Arm Lab Res Acc Turns Passed 11091 | 95 476 347 1064 290 129 547 861 10 260 673 1107 475 145 465 1078 280 1978 21 116 674 Spaces Moved 5645 | 55 309 135 640 221 78 289 422 7 78 322 545 346 62 192 445 138 786 15 77 483 Core 352 | 2 . . . . . . . . . . . . . . . . . . . 350 Treads 1230 | . . 22 144 . . 252 422 7 27 . . . . . . . 132 15 77 132 Legs 2756 | . . . . . . . . . 51 322 545 346 62 192 445 138 654 . . 1 Wheels 1307 | 53 309 113 496 221 78 37 . . . . . . . . . . . . . . Hover . | . . . . . . . . . . . . . . . . . . . . . Flight . | . . . . . . . . . . . . . . . . . . . . . Fastest Speed 50 | 50 95 140 130 130 130 105 160 160 120 115 115 120 120 120 120 120 103 145 145 50 Average Speed 139 | 98 111 156 154 130 136 153 160 160 190 115 117 120 173 181 164 144 160 145 145 77 Slowest Speed 260 | 100 140 240 240 130 145 160 160 160 260 115 120 120 190 190 190 190 260 145 145 148 Overloaded Moves . | . . . . . . . . . . . . . . . . . . . . . Propulsion Burnouts . | . . . . . . . . . . . . . . . . . . . . . Robots Hopped . | . . . . . . . . . . . . . . . . . . . . . Cave-ins Triggered . | . . . . . . . . . . . . . . . . . . . . . Exploration Rate (%) 34 | 4 50 21 99 60 26 28 16 1 51 11 68 91 81 23 15 3 40 6 3 19 Regions Visited 20 Branch Regions 9 Pre-discovered Areas 1 | . . . . 1 . . . . . . . . . . . . . . . . Known Exits Taken 4 | . . . . . . 1 . 1 . . . . . 1 . 1 . . . . Unknown Exits Taken 15 | 1 1 1 1 1 1 . 1 . . 1 1 1 1 . 1 . 1 1 1 . Scrap Searched 2 | . . . 2 . . . . . . . . . . . . . . . . . Spaces Dug 43 | . . . 1 . 5 . . . 4 1 18 . . . 4 . 1 . . 9 Terrain Destroyed 425 | . . . 1 . 5 . . . 24 4 40 3 9 21 80 . 81 . . 157 Melee 4 | . . . 1 . . . . . . 1 2 . . . . . . . . . Projectile 141 | . . . . . . . . . 1 3 38 3 9 21 48 . 11 . . 7 AOE 280 | . . . . . 5 . . . 23 . . . . . 32 . 70 . . 150 Terrain Rammed . | . . . . . . . . . . . . . . . . . . . . . Walls Destroyed . | . . . . . . . . . . . . . . . . . . . . . Machines Disabled . | . . . . . . . . . . . . . . . . . . . . . Actions | -11 -10 -9 -9 -9 -8 -8 -7 -6 -6 -5 -5 -5 -5 -5 -4 -3 -3 -3 -2 -1 --------- Run | Yrd Mat Mat Min Exi Min Mat Fac Fac DSF Fac Ext Cet Arc Hub Fac Res Arm Lab Res Acc Total 7886 | 76 388 213 690 224 89 344 587 6 147 586 948 384 90 271 654 196 1253 14 80 646 Wait 1147 | 1 27 40 27 . 3 11 128 . 16 224 232 8 15 52 87 36 200 . . 40 Move 5624 | 54 308 134 639 220 77 288 421 6 77 321 544 345 61 191 444 137 785 14 76 482 Hop . | . . . . . . . . . . . . . . . . . . . . . Pick Up 113 | 6 5 1 6 4 . 6 10 . 8 7 9 7 2 3 11 7 17 . 1 3 Fast Attach 66 | 7 1 2 3 . 1 1 1 . 6 3 1 . . . 9 2 17 . 2 10 Attach 80 | . . 2 1 . . 5 5 . 5 4 1 2 1 1 18 3 17 . 1 14 Detach 20 | . . . 1 . . 1 . . 3 . . . . . 2 1 6 . . 6 Swap 92 | . 7 . . . 2 3 5 . 2 2 17 5 2 1 8 . 31 . . 7 Drop 99 | . 9 . . . . 3 7 . 7 4 14 6 3 4 6 . 29 . . 7 Fire 500 | 8 31 34 3 . 4 22 10 . 23 18 33 11 6 18 69 10 127 . . 73 Melee 19 | . . . 8 . 2 2 . . . 2 5 . . . . . . . . . Ram 3 | . . . . . . . . . . . . . . . . . . . . 3 Kick 2 | . . . . . . . . . . 1 . . . 1 . . . . . . Crush 5 | . . . 2 . . 2 . . . . . . . . . . . . . 1 Escape Stasis . | . . . . . . . . . . . . . . . . . . . . . Rewire 116 | . . . . . . . . . . . 92 . . . . . 24 . . . Trap . | . . . . . . . . . . . . . . . . . . . . . Miscellaneous . | . . . . . . . . . . . . . . . . . . . . . Route ------- -11/Scrapyard -10/Materials -9/Materials -9/Mines (discovered 3 exits: *Mat x2 / *Exi) -9/Exiles -8/Mines -8/Materials (discovered 4 exits: *Fac x2 / *Sto x2) -7/Factory -6/Factory -6/DSF -5/Factory -5/Extension (discovered 3 exits: *Fac x2 / *Cet) -5/Cetus (discovered 2 exits: *Fac / [*Arc]) -5/Archives (discovered 2 exits: *Hub x2) -5/Hub_04(d) -4/Factory -3/Research -3/Armory -3/Lab -2/Research -1/Access To Epsilon Eridani History --------- Turn | Location | Event 35 | -11/Scrapyard | Discovered new exit (range 15) 96 | -11/Scrapyard | Entered Materials 301 | -10/Materials | Build established: Mutant 569 | -10/Materials | Discovered new exit (range 5) 572 | -10/Materials | Entered another Materials area 572 | -9/Materials | Evolved 2 slots: Utility x1, Weapon x1 895 | -9/Materials | Discovered new exit (range 11) 919 | -9/Materials | Entered Mines 951 | -9/Mines | Discovered new exit (range 11) 1211 | -9/Mines | Build established: Scavenger-Mutant 1247 | -9/Mines | Discovered new exit (range 15) 1353 | -9/Mines | Learned 8 Materials zone layouts 1568 | -9/Mines | Build established: Mutant 1972 | -9/Mines | Deemed a non-threat by the Exiles lab entrance 1972 | -9/Mines | Discovered new exit (range 5) 1983 | -9/Mines | Entered Exiles 1983 | -9/Exiles | Accompanied by 2 allies 2013 | -9/Exiles | Led the pair of lost Derelicts to a safe place 2022 | -9/Exiles | Met 8R-AWN 2042 | -9/Exiles | Met EX-HEX 2083 | -9/Exiles | Met EX-BIN 2098 | -9/Exiles | Aligned with FarCom system 2100 | -9/Exiles | Given EX-Vault access code 2131 | -9/Exiles | Opened EX-Vault 2140 | -9/Exiles | Found Trap Reconfigurator 2168 | -9/Exiles | Warned to stay clear of 0b10 Research branches 2185 | -9/Exiles | Exiles lab attacked by MAIN.C 2215 | -9/Exiles | Learned location of Zion (-6) 2259 | -9/Exiles | Discovered new exit (range 14) 2273 | -9/Exiles | Left Exiles lab with Trap Reconfigurator 2273 | -9/Exiles | Entered Mines 2398 | -8/Mines | Discovered new exit (range 3) 2402 | -8/Mines | Entered Materials 2402 | -8/Materials | Evolved 2 slots: Propulsion x2 2403 | -8/Materials | Identified exit to Storage 2403 | -8/Materials | Identified exit to Factory 2486 | -8/Materials | Lost 3 parts (2n1w) 2644 | -8/Materials | Build established: Scavenger-Mutant 2944 | -8/Materials | Discovered exit to Factory (range 4) 2949 | -8/Materials | Entered Factory 2949 | -7/Factory | Evolved 2 slots: Utility x2 3009 | -7/Factory | Build established: Scavenger-Skirmisher 3442 | -7/Factory | Garrison activated, responded to threat 3699 | -7/Factory | Fabricated Hvy. Machine Gun (x2) 3766 | -7/Factory | Discovered new exit (range 19) 3810 | -7/Factory | Entered another Factory area 3810 | -6/Factory | Evolved 2 slots: Utility x2 3820 | -6/Factory | Identified exit to DSF 3820 | -6/Factory | Entered DSF 3840 | -6/DSF | Discovered new exit (range 19) 3851 | -6/DSF | Additional patrols routed to DSF 3930 | -6/DSF | Lost 3 parts (1p2n) 4034 | -6/DSF | Sterilization system engaged 4054 | -6/DSF | Ambient heat levels rising (+10) 4069 | -6/DSF | Ambient heat levels rising (+10) 4080 | -6/DSF | Lost 3 parts (2u1w) 4080 | -6/DSF | Entered Factory 4080 | -5/Factory | Evolved 2 slots: Propulsion x2 4732 | -5/Factory | Discovered new exit (range 20) 4753 | -5/Factory | Entered Extension 4989 | -5/Extension | Rescued a captive Derelict 5077 | -5/Extension | Identified exit to Factory 5151 | -5/Extension | Lost 5 allies 5214 | -5/Extension | Build established: Scavenger-Gunner 5834 | -5/Extension | Discovered new exit (range 6) 5860 | -5/Extension | Entered Cetus 5860 | -5/Cetus | Accompanied by 4 allies 5875 | -5/Cetus | Spotted Cetus Guard 5876 | -5/Cetus | Spotted Cetus Guard 5878 | -5/Cetus | Spotted Cetus Guard 5881 | -5/Cetus | Spotted Cetus Guard 5885 | -5/Cetus | Allies destroyed Cetus Guard 5889 | -5/Cetus | Allies destroyed Cetus Guard 5898 | -5/Cetus | Allies destroyed Cetus Guard 5901 | -5/Cetus | Allies destroyed Cetus Guard 6106 | -5/Cetus | Discovered new exit (range 20) 6229 | -5/Cetus | Spotted Cetus Guard 6230 | -5/Cetus | Spotted Cetus Guard 6231 | -5/Cetus | Spotted Cetus Guard 6233 | -5/Cetus | Spotted Cetus Guard 6241 | -5/Cetus | Destroyed Cetus Guard 6241 | -5/Cetus | Destroyed Cetus Guard 6242 | -5/Cetus | Allies destroyed Cetus Guard 6245 | -5/Cetus | Allies destroyed Cetus Guard 6251 | -5/Cetus | Discovered exit to Factory (range 19) 6262 | -5/Cetus | Met Revision 17 6335 | -5/Cetus | Entered Archives 6335 | -5/Archives | Accompanied by 2 allies 6409 | -5/Archives | Discovered new exit (range 19) 6435 | -5/Archives | Discovered new exit (range 19) 6480 | -5/Archives | Entered Hub_04(d) 6480 | -5/Hub_04(d) | Accompanied by 1 ally 6535 | -5/Hub_04(d) | Garrison activated, responded to threat 6668 | -5/Hub_04(d) | Build established: Scavenger-Tank 6858 | -5/Hub_04(d) | Garrison activated, responded to threat 6899 | -5/Hub_04(d) | Discovered exit to Factory (range 12) 6945 | -5/Hub_04(d) | Entered Factory 6945 | -4/Factory | Evolved 2 slots: Power x1, Utility x1 7007 | -4/Factory | Garrison activated, responded to threat 7420 | -4/Factory | Garrison activated, responded to threat 7674 | -4/Factory | Garrison activated, responded to threat 7726 | -4/Factory | Lost 5 parts (3n1u1w) 7898 | -4/Factory | System corruption reached 10% 7937 | -4/Factory | Lost 10 parts (2p3n2u3w) 7976 | -4/Factory | Discovered new exit (range 15) 8023 | -4/Factory | Entered Research 8023 | -3/Research | Evolved 2 slots: Utility x2 8048 | -3/Research | Discovered new exit (range 14) 8098 | -3/Research | Identified exit to Armory 8223 | -3/Research | Revision forces began assault on 0b10 8273 | -3/Research | Met up with Revision 17++ 8303 | -3/Research | Entered Armory 8304 | -3/Armory | Met VL-GR5, who suggested a friendly competition 8488 | -3/Armory | Found Fusion Bomb Launcher 9121 | -3/Armory | System corruption reached 10% 9436 | -3/Armory | Build established: Scavenger-Gunner 9732 | -3/Armory | Destroyed 7 combat bots 9732 | -3/Armory | Lost 5 parts (1p1n1u2w) 9803 | -3/Armory | First assault squad dispatched 9906 | -3/Armory | Lost 5 parts (2p2u1w) 9950 | -3/Armory | Spotted B-86 Titan 10084 | -3/Armory | Destroyed B-86 Titan 10088 | -3/Armory | System corruption reached 30% 10272 | -3/Armory | Discovered new exit (range 3) 10281 | -3/Armory | Entered Lab 10281 | -3/Lab | Discovered new exit (range 9) 10299 | -3/Lab | Unable to decrypt terminal 10302 | -3/Lab | Entered Research 10302 | -2/Research | Evolved 2 slots: Propulsion x2 10303 | -2/Research | Lost 3 parts (1n2w) 10342 | -2/Research | Discovered new exit (range 11) 10418 | -2/Research | Entered Access 10418 | -1/Access | Evolved 2 slots: Power x1, Utility x1 10504 | -1/Access | Energy Cycler disabled 10521 | -1/Access | Garrison activated, responded to threat 10588 | -1/Access | Destroyed 15 combat bots 10625 | -1/Access | Lost 3 parts (3w) 10726 | -1/Access | Destroyed 7 combat bots 10792 | -1/Access | Destroyed 7 combat bots 10908 | -1/Access | Lost 13 parts (1p4n4u4w) 10910 | -1/Access | Core integrity fell below 50% 10918 | -1/Access | First assault squad dispatched 11041 | -1/Access | Spotted B-99 Colossus 11065 | -1/Access | Lost 4 parts (2n2u) 11073 | -1/Access | Found Prototype Processor 11073 | -1/Access | Identified Exp. Terrain Scan Processor 11083 | -1/Access | Core integrity fell below 20% 11090 | -1/Access | Discovered new exit (range 6) 11092 | *** | Escaped! Last Messages --------------- 11041_ Penetrated by Slug. 11041_ Slug penetrates Wall. 11044_ Terminal disabled. 11044_ Slug penetrates Terminal. 11044_ Penetrated by Slug. 11055_ System corrupted: Linear Accelerator rejected. 11055_ Acquired Linear Accelerator. 11063_ Slammed into R-10 Processor. 11066_ W-44 Eye sends out distress signal. 11068_ ALERT: Rogue bot located, Programmers report to Access Zone 3M. 11070_ System corrupted: Matter fused (-8). 11073_ Acquired Prototype Processor. 11073_ Identified Exp. Terrain Scan Processor. 11077_ Biometal Leg destroyed. 11077_ Knocked back. 11090_ System corrupted: Matter fused (-7). 11090_ The Access Shell folds into the floor. 11090_ EXIT=FOUND Map ----- +----------------------------------------------------+ | ??+?###############+### # # ?? | | ?? ?# # # # #? | | ?? ?# # # # #? | | ?# ## # # ! # #? | | ?# ## # # # = #? | | ?# ## # ######### """"" #? | | ?# ## # #???????# """"" #? | | ?# ## # #???????# """"" #? | | ## ## # "???????# ????? #? | | #"################## #???????# ????? #? | | + #???? ???????###???????####? | | # ### #???? ?????????????????????? | | # #?? #???? ?????????????????????? | | # #??? ? #???? ?????????????????????? | | # #???? h ??????BB????BB????????????????????? | | # ##???? ????BB????BB????????????????????? | | ########/#####???????????????????????????????? | | #???????????????????????????????????? | | w h#???????????????????????????????????? | | ####### #???????????????????????????????????? | | #####????## #?????#""""""""""#??????????????????? | | ##########" #?????# #??????????????????? | | # !! # #?????# #??????????????????? | | !!!" #?????# #??????????????????? | | # !!!" #?????# "" #??????????????????? | | # # #?????# "@ #??????????????????? | | # # #?????# #??????????????????? | | # "" "" + #?????# #??????????????????? | | # ""T"" # #?????# #??????????????????? | | # """ # %#????## ##?????????????????? | | ###########Y #????# #?????????????????? | | ?# ?# H#????##"" ##?????????????????? | | ?# # #?????#"" #??????????????????? | | ?# " # #?????#"" #??????????????????? | | ?# """ + #?????#T #??????????????????? | | ?# """ # #?????#"" #??????????????????? | | ?? " # #?????#"" #??????????????????? | | ?# ?# #######"" #??????????????????? | | ?# ?# p p k ???????????? | | ?# ??# R ???????????? | | ?#######??#"##+######################????????????? | | ????????? ????????????????????????????????????? | | ???????# !????????????????????????????????????? | | ???????# ????????????????????????????????????? | | ???????# ????????????????????????????????????? | | ???????# ]????????????????????????????????????? | | ???????# ]????????????????????????????????????? | | ???????+ ]????????????????????????????????????? | | ???????# ????????????????????????????????????? | | ???????######????????????????????????????????????? | +----------------------------------------------------+ Best States ------------- Heat Dissipation 114 Coolant Potential 100 Energy Generation 57 Energy Capacity 640 Matter Stores 300 Matter Capacity 300 Sight Range 20 Terrain Scan Density 1010 ECM Strength 1 Power Amplification 20 Armor Coverage 1200 Resistance: KI 25 Resistance: TH 25 Evasion (%) 55 Targeting Accuracy 8 Target Analysis 12 Recoil Reduction 8 Matter Filtering 30 Particle Charging 25 Kinecelleration 40 Offensive Hacking 14 Item Schematics ----------------- None Robot Schematics ------------------ None Fabricated ------------ Hvy. Machine Gun | x2 | -7/Factory | Preloaded Alien Tech Used ----------------- None Achievements -------------- Revolutionary Research Challenges ------------ None Game ------ Seed FactoryGravityDeconstructor Manual? 0 Play Time 01:34:56 Cumulative 399.8 hours Start 2024.06.07 @ 22:55:06 End 2024.06.08 @ 21:54:39 Sessions 3 Manual Loads 0 Difficulty Rogue Special Mode None Game No. 279 Rogue 279 Adventurer 0 Explorer 0 Win Type 0 Total 35 Types 31/0/3/1/0/0/0/0/0 Lore% 71 Gallery% 86 Achievement% 70 Wizard Run 0 Options --------- Layout 1 ASCII 0 Keyboard 1 Movement Numpad Keybinds 0 Fullscreen 2 Font 32/SmallcapsGlow Map View 50x35 Zoom Use 0% Tactical HUD 1 Map Filters NONE Filters NONE Steam 1 RUN: 1fdd0cca-36b3-46ef-bce2-6a04a4f154ef